Cogmind - Beta 15 --- EXPLORER MODE // 2025.07.18 @ 21:28:42 Player: Nah Bohdi Result: Core destroyed Performance ------------- Evolutions (5) 2500 Regions Visited (11) 2200 Robots Destroyed (76) 380 Value Destroyed (2900) 2900 Prototype IDs (0) 0 Alien Tech Used (0) 0 Bonus (1742) 1742 TOTAL SCORE: 9722 Bonus ------- High Alert Combat Kills 42 Entered Garrisons 200 Used RIF Installer 500 Entered DSFs 1000 Cogmind --------- Core Integrity 0/1000 Matter 298/300 Energy 300/300 System Corruption 0% Temperature Critical (2260) Movement Core (700) Ox13 Location -5/DSF Parts ------- > --- POWER (2) -------- Reinforced Fission Core > --- PROPULSION (5) --- Field Propulsion Array Field Propulsion Array > --- UTILITY (9) ------ Advanced Cooling System Medium Storage Unit Compact Battery Targeting Computer Targeting Computer Targeting Computer > --- WEAPON (2) ------- High-powered Shotgun High-powered Shotgun > --- INVENTORY (10) --- Micro Nuclear Core Field Propulsion Array Field Propulsion Array Triangulator Hardened Medium Armor Plating Medium Reactive Plating System Restoration Module Peak State ------------ > --- POWER ------------ Light Fission Core > --- PROPULSION ------- Nuclear Pulse Thruster Nuclear Pulse Thruster Nuclear Pulse Thruster Nuclear Pulse Thruster Field Propulsion Drive > --- UTILITY ---------- Advanced Cooling System Medium Storage Unit Compact Battery Advanced Weight Redist. System Sensor Array Targeting Computer Targeting Computer Targeting Computer > --- WEAPON ----------- Phase Cannon Phase Cannon > --- INVENTORY -------- Improved Gravmag System Improved Gravmag System Improved Gravmag System Cooled Aerolev Unit Triangulator Hardened Medium Armor Plating Medium Reactive Plating System Restoration Module High-powered Shotgun High-powered Shotgun [Rating: 62] Favorites ----------- Power Light Ion Engine Engine Light Ion Engine Power Core Nuclear Core Propulsion Aluminum Leg Leg Aluminum Leg Wheel Wheel Hover Unit Improved Gravmag System Flight Unit Nuclear Pulse Thruster Utility Targeting Computer Device Sensor Array Storage Medium Storage Unit Processor Targeting Computer Protection Weapon Shielding Weapon Assault Rifle Energy Cannon Phase Cannon Ballistic Gun Assault Rifle Ballistic Cannon Advanced Assault Cannon Launcher Shock Bomb Launcher Slashing Weapon Great Axe Build | -11 -10 -10 -10 -9 -8 -8 -7 -7 -6 -5 -5 ------- Run | Yrd Mat Min Exi Min Mat Gar Fac DSF Fac Fac DSF Slots Evolved 11 | . 1 . . . 4 . 2 . 2 2 . Power 1 | . . . . . . . . . . 1 . Propulsion 3 | . . . . . 1 . . . 1 1 . Utility 7 | . 1 . . . 3 . 2 . 1 . . Weapon . | . . . . . . . . . . . . Parts Attached 73 | 7 6 . . 1 6 9 1 17 15 . 11 Power 8 | 1 1 . . . 1 . 1 1 2 . 1 Engine 4 | 1 1 . . . . . 1 . 1 . . Core 4 | . . . . . 1 . . 1 1 . 1 Reactor . | . . . . . . . . . . . . Propulsion 28 | 2 4 . . 1 1 2 . 6 7 . 5 Treads . | . . . . . . . . . . . . Leg 10 | 2 4 . . 1 1 2 . . . . . Wheel 3 | . . . . . . . . 3 . . . Hover 7 | . . . . . . . . 3 3 . 1 Flight 8 | . . . . . . . . . 4 . 4 Utility 19 | 2 1 . . . 4 4 . 3 4 . 1 Device 9 | . . . . . 3 1 . 2 2 . 1 Storage 2 | 1 . . . . . . . . 1 . . Processor 4 | . 1 . . . . 3 . . . . . Hackware . | . . . . . . . . . . . . Protection 4 | 1 . . . . 1 . . 1 1 . . Artifact . | . . . . . . . . . . . . Weapon 18 | 2 . . . . . 3 . 7 2 . 4 Energy Gun . | . . . . . . . . . . . . Energy Cannon 4 | . . . . . . . . . 2 . 2 Ballistic Gun 9 | 2 . . . . . 3 . 2 . . 2 Ballistic Cannon 2 | . . . . . . . . 2 . . . Launcher 2 | . . . . . . . . 2 . . . Special Weapon . | . . . . . . . . . . . . Impact Weapon . | . . . . . . . . . . . . Slashing Weapon 1 | . . . . . . . . 1 . . . Piercing Weapon . | . . . . . . . . . . . . Special Melee Weapon . | . . . . . . . . . . . . Unidentified Prototypes . | . . . . . . . . . . . . Parts Lost 12 | . . . . . . . . 3 1 . 8 Power 1 | . . . . . . . . . . . 1 Propulsion 4 | . . . . . . . . . . . 4 Utility 5 | . . . . . . . . 2 1 . 2 Weapon 2 | . . . . . . . . 1 . . 1 Highest Loss Streak 3 | . . . . . . . . 3 1 . 3 To Critical Strikes 1 | . . . . . . . . . . . 1 Average Backups 6 | 2 8 9 9 9 8 9 7 8 9 10 8 Power . | . . . . . . . . 1 1 . . Propulsion 2 | . 4 4 4 4 4 4 4 3 3 4 2 Utility 2 | 1 2 2 2 2 . 1 1 1 2 4 4 Weapon 1 | . 2 3 3 3 4 3 2 2 3 2 1 Tool/Special . | . . . . . . . . . . . . Unused Backups 12 | . . . . . . 6 . 1 . . 5 Power 1 | . . . . . . . . . . . 1 Propulsion 5 | . . . . . . 1 . 1 . . 3 Utility 1 | . . . . . . . . . . . 1 Weapon 5 | . . . . . . 5 . . . . . Tool/Special . | . . . . . . . . . . . . Average Slot Usage (%) 96 | . 96 100 100 100 94 99 99 92 99 83 73 Engine 6 | . 12 12 12 12 1 . 3 2 4 . . Core 2 | . . . . . 6 8 3 4 1 5 3 Leg 17 | . 25 25 25 25 23 25 21 4 . . . Hover 5 | . . . . . . . . 11 24 . 3 Flight 1 | . . . . . . . . . . 22 16 Device 7 | . . . . . 13 11 13 8 17 16 10 Storage 9 | . 12 12 12 12 8 8 7 7 7 11 11 Processor 13 | . 9 12 12 12 8 14 21 21 18 16 16 Protection 11 | . 11 12 12 12 15 14 14 13 10 . . Ballistic Gun 15 | . 25 25 25 25 16 15 14 3 . . 6 Ballistic Cannon 2 | . . . . . . . . 5 9 . . Peak Build Rating 62 | 7 9 9 9 9 21 31 30 40 58 55 62 Average Rating 18 | 6 8 9 9 9 18 24 29 33 54 55 54 On Entrance 22 | . 7 9 9 9 9 21 27 30 40 55 55 Naked Turns . | . . . . . . . . . . . . Heaviest Build 51 | 18 20 20 20 20 29 33 36 42 50 36 51 Greatest Support 49 | 20 20 20 20 20 35 40 40 40 49 33 40 Greatest Overweight (x) 13 | 5 . . . . . 1 . 1 2 1 13 Average Overweight (x) . | . . . . . . . . . . 1 . Largest Inventory Capacity 10 | 10 10 10 10 10 10 10 10 10 10 10 10 Average Capacity 9 | 9 10 10 10 10 10 10 10 10 10 10 10 Most Carried 10 | 7 10 9 9 10 10 10 8 10 10 10 10 Average Carried 6 | 2 8 9 9 9 8 9 7 8 9 10 8 Final Capacity 10 | 10 10 10 10 10 10 10 10 10 10 10 10 Final Carried 10 | 7 9 9 9 10 9 9 8 10 10 10 9 Class Distribution -------------------- 92% | Hacker-Mutant 5% | Scavenger-Mutant Dominant Class ---------------- Hacker-Mutant | -10/Materials Hacker-Mutant | -10/Mines Hacker-Mutant | -10/Exiles Hacker-Mutant | -9/Mines Hacker-Mutant | -8/Materials Hacker-Mutant | -8/Garrison Hacker-Mutant | -7/Factory Hacker-Mutant | -7/DSF Hacker-Mutant | -6/Factory Hacker-Mutant | -5/Factory Hacker-Mutant | -5/DSF Resources | -11 -10 -10 -10 -9 -8 -8 -7 -7 -6 -5 -5 ----------- Run | Yrd Mat Min Exi Min Mat Gar Fac DSF Fac Fac DSF Matter Collected 2863 | 346 200 20 . 70 70 656 55 443 237 . 766 Remotely . | . . . . . . . . . . . . Salvage Created 2703 | 69 324 . . 159 . 872 . 303 252 . 724 Parts 167 | . 21 . . 15 . 62 . 19 10 . 40 Haulers Intercepted . | . . . . . . . . . . . . Recyclers Shooed . | . . . . . . . . . . . . Parts Field Recycled . | . . . . . . . . . . . . Retrieved Matter . | . . . . . . . . . . . . Parts Self-Destructed . | . . . . . . . . . . . . Prevented . | . . . . . . . . . . . . Kills | -11 -10 -10 -10 -9 -8 -8 -7 -7 -6 -5 -5 ------- Run | Yrd Mat Min Exi Min Mat Gar Fac DSF Fac Fac DSF Combat Hostiles Destroyed 72 | 5 7 . . 7 . 20 . 10 8 . 15 Guns 43 | 5 7 . . 7 . 20 . . . . 4 Cannons 25 | . . . . . . . . 6 8 . 11 AOE 4 | . . . . . . . . 4 . . . Classes Destroyed 11 | 1 3 . . 1 . 4 . 1 . . 1 Watcher 7 | . 3 . . . . 2 . . 2 . . Swarmer 26 | . 2 . . 5 . 6 . 6 . . 7 Cutter 4 | . . . . . . . . . . . 4 Saboteur 3 | . . . . . . 3 . . . . . Grunt 21 | . 5 . . 1 . 5 . 3 5 . 2 Brawler 2 | . . . . 1 . 1 . . . . . Sentry 6 | . . . . . . 4 . . 1 . 1 Hunter 2 | . . . . . . 2 . . . . . Programmer 3 | . . . . . . 1 . . 2 . . Heavy 2 | . . . . . . . . 1 . . 1 Assembled 5 | 5 . . . . . . . . . . . Best Kill Streak 12 | 2 3 . . 3 . 3 . 3 3 . 12 Combat Bots Only 12 | 2 2 . . 3 . 3 . 3 3 . 12 Max Kills in Single Turn 2 | 1 1 . . 1 . 2 . 2 1 . 1 Gunslinging . | . . . . . . . . . . . . Exploded 2 | . . . . . . . . 2 . . . Melee . | . . . . . . . . . . . . Uniques/NPCs Destroyed . | . . . . . . . . . . . . Combat | -11 -10 -10 -10 -9 -8 -8 -7 -7 -6 -5 -5 -------- Run | Yrd Mat Min Exi Min Mat Gar Fac DSF Fac Fac DSF Hostile Shots Fired 422 | 9 31 9 . 15 . 110 . 78 43 . 127 Missed 142 | 1 10 3 . 7 . 34 . 31 19 . 37 Hits 280 | 8 21 6 . 8 . 76 . 47 24 . 90 Melee 6 | 5 . . . . . . . . . . 1 Projectile 274 | 3 21 6 . 8 . 76 . 47 24 . 89 AOE 3 | . . . . . . . . . . . 3 Critical Strikes 16 | 1 1 . . . . 3 . 1 1 . 9 Actively Blocked 3 | . 1 . . . . 2 . . . . . Part Disruptions 2 | 1 . . . . . 1 . . . . . Damage Taken 3677 | 109 199 31 . 43 . 396 . 644 281 . 1974 Core 1154 | 19 19 . . 17 . 44 . 42 3 . 1010 Absorbed by Shields 293 | . . . . . . 261 . 32 . . . Redirected to Shielding 124 | 5 31 1 . 3 . 35 . 31 18 . . Ignored by Resistances 2052 | 65 123 22 . 29 . 407 . 397 167 . 842 Regen/Repaired (Parts) 34 | . 34 . . . . . . . . . . Core Remaining (%) 91 | 92 . . . 78 . 92 . 94 99 . . Volleys Fired 235 | 11 25 . 1 10 . 87 . 27 33 . 41 Largest 2 | 2 2 . 2 2 . 2 . 2 2 . 2 Hottest 170 | 40 40 . 40 40 . 56 . 80 170 . 170 Shots Fired 460 | 22 50 . 2 20 . 175 . 48 66 . 77 Gun 310 | 22 50 . 2 20 . 175 . 18 . . 23 Cannon 142 | . . . . . . . . 22 66 . 54 Launcher 8 | . . . . . . . . 8 . . . Special . | . . . . . . . . . . . . Kinetic 392 | 22 50 . 2 20 . 175 . 40 60 . 23 Thermal 60 | . . . . . . . . . 6 . 54 Explosive . | . . . . . . . . . . . . Electromagnetic 8 | . . . . . . . . 8 . . . Robot Hit Streak 42 | 9 13 . . 10 . 24 . 42 15 . 21 Robot Miss Streak 3 | 2 2 . . 1 . 3 . 2 1 . 3 Penetration Max 1 | . . . . . . 1 . . . . . Secondary Targets 5 | . . . . 2 . 3 . . . . . Max Gunslinging Chain 1 | . . . . 1 . 1 . . . . . Shots Hit Robots 350 | 15 34 . . 15 . 134 . 40 50 . 62 Core Hits 156 | 9 17 . . 10 . 54 . 17 16 . 33 Critical Kills 1 | . . . . . . 1 . . . . . Critical Parts Destroyed 3 | . . . . . . 2 . . . . 1 Critical Strikes 8 | . . . . . . 3 . 1 3 . 1 Destroy 4 | . . . . . . 3 . . . . 1 Blast 4 | . . . . . . . . 1 3 . . Melee Attacks . | . . . . . . . . . . . . Impact . | . . . . . . . . . . . . Slashing . | . . . . . . . . . . . . Piercing . | . . . . . . . . . . . . Sneak Attacks . | . . . . . . . . . . . . Combat Hostiles . | . . . . . . . . . . . . Follow-up Attacks . | . . . . . . . . . . . . Damage Inflicted 7208 | 194 424 . . 190 . 1979 . 1168 1436 . 1817 Guns 3414 | 194 424 . . 187 . 1722 . 352 . . 535 Cannons 3137 | . . . . . . . . 419 1436 . 1282 Explosions 654 | . . . . . . 257 . 397 . . . Melee . | . . . . . . . . . . . . Ramming 3 | . . . . 3 . . . . . . . Kinetic 5046 | 194 424 . . 187 . 1722 . 771 1213 . 535 Thermal 1568 | . . . . . . . . 63 223 . 1282 Explosive 257 | . . . . . . 257 . . . . . Electromagnetic 334 | . . . . . . . . 334 . . . Impact . | . . . . . . . . . . . . Slashing . | . . . . . . . . . . . . Piercing . | . . . . . . . . . . . . Highest Corruption 1 | . . . . . . 1 . . 1 . . Average Corruption 1 | . . . . . . 1 . . 1 . . Corruption Purged 1 | . . . . . . 1 . . . . . Corruption Blocked . | . . . . . . . . . . . . Effects 11 | . . . . . . 10 . . 1 . . Message Errors 1 | . . . . . . 1 . . . . . Matter Fused 4 | . . . . . . 4 . . . . . Heat Flow Errors 1 | . . . . . . 1 . . . . . Energy Discharges 1 | . . . . . . . . . 1 . . Data Loss (minor) 1 | . . . . . . 1 . . . . . Data Loss (major) 1 | . . . . . . 1 . . . . . Misfires 1 | . . . . . . 1 . . . . . Alerts 1 | . . . . . . 1 . . . . . Overload Shots . | . . . . . . . . . . . . Overflow Damage 98 | . . . . . . . . 13 63 . 22 Projectiles 98 | . . . . . . . . 13 63 . 22 Explosions . | . . . . . . . . . . . . Melee . | . . . . . . . . . . . . Knockbacks 12 | . . . . . . . . 4 8 . . Impact . | . . . . . . . . . . . . Kinetic 11 | . . . . . . . . 3 8 . . Secondary 1 | . . . . . . . . 1 . . . Self-Inflicted Damage 70 | . . . . . . 70 . . . . . Shots 1 | . . . . . . 1 . . . . . Rammed . | . . . . . . . . . . . . Targets Rammed 3 | . . . . 3 . . . . . . . Kicked 3 | . . . . 3 . . . . . . . Crushed . | . . . . . . . . . . . . Highest Temperature 2260 | . 8 . . . . 265 . . 261 . 2260 Average Temperature 387 | . 2 . . . . 111 . . 64 . 659 Received Heat Transfer 650 | 20 120 . . 12 . 90 . 54 165 . 189 Effects 69 | . . . . . . . . . . . 69 Shutdowns 6 | . . . . . . . . . . . 6 Interference 7 | . . . . . . . . . . . 7 Matter Decay 7 | . . . . . . . . . . . 7 Short Circuit 3 | . . . . . . . . . . . 3 Damage (minor) 6 | . . . . . . . . . . . 6 Damage (major) 36 | . . . . . . . . . . . 36 Damage (core) 4 | . . . . . . . . . . . 4 Siege Activations . | . . . . . . . . . . . . Martial Activations . | . . . . . . . . . . . . Shielding Activations . | . . . . . . . . . . . . Robots Disrupted . | . . . . . . . . . . . . Combat Hostiles . | . . . . . . . . . . . . Robots Corrupted . | . . . . . . . . . . . . Combat Hostiles . | . . . . . . . . . . . . Parts Fried 2 | . . . . . . . . 2 . . . Impact Corruptions . | . . . . . . . . . . . . Robots Melted 1 | . . . . . . . . . . . 1 Combat Hostiles . | . . . . . . . . . . . . Parts Melted 3 | . . . . . . . . . . . 3 Heat Transferred 1876 | . . . . . . . . 100 222 . 1554 Parts Sabotaged . | . . . . . . . . . . . . Parts Stolen . | . . . . . . . . . . . . Parts Stripped . | . . . . . . . . . . . . Power Chain Reactions 2 | . . . . . . . . 2 . . . Alert | -11 -10 -10 -10 -9 -8 -8 -7 -7 -6 -5 -5 ------- Run | Yrd Mat Min Exi Min Mat Gar Fac DSF Fac Fac DSF Maximum Alert Level 2 | . . . . . . 2 1 1 . . 1 Low Security (%) 85 | 100 100 100 . 100 100 29 52 31 100 100 58 Level 1 11 | . . . . . . 43 47 68 . . 41 Level 2 3 | . . . . . . 26 . . . . . Level 3 . | . . . . . . . . . . . . Level 4 . | . . . . . . . . . . . . Level 5 . | . . . . . . . . . . . . High Security . | . . . . . . . . . . . . Max Security . | . . . . . . . . . . . . Sterilizations 2 | . . . . . . . . 1 . . 1 Peak Influence 620 | . 50 1 . 70 2 620 241 364 141 . 370 Initial 241 | . . 1 . . . . 241 94 141 . . Average 66 | . 6 . . 9 . 305 202 207 31 . 182 Influence Increases 2052 | . 227 . . 185 2 620 24 300 254 . 440 Destroy 0b10 Robot/C 1340 | . 140 . . 140 . 400 . 200 160 . 300 Destroy 0b10 Robot/NC 50 | . 15 . . . . 15 . . 10 . 10 Destroy Leader 190 | . 46 . . 30 . 10 . 30 34 . 40 Successful Hack 76 | . 25 . . . 2 22 24 . 3 . . Disable Machine 16 | . . . . . . . . 4 12 . . Anti-Garrison Action 100 | . . . . . . 100 . . . . . Destroy Structure 55 | . 1 . . . . 43 . 6 5 . . Lose Combat Pursuer 225 | . . . . 15 . 30 . 60 30 . 90 Influence Decreases 1682 | . 222 5 . 185 . 2 469 111 618 . 70 Entered New Map 689 | . . 4 . . . 2 379 81 223 . . Time Decay 883 | . 222 1 . 185 . . 90 . 385 . . Lost Part 110 | . . . . . . . . 30 10 . 70 Squads Dispatched 14 | . 1 . . . . . . 1 9 . 3 Investigation 5 | . 1 . . . . . . . 4 . . Extermination 4 | . . . . . . . . . 4 . . Reinforcement 5 | . . . . . . . . 1 1 . 3 Assault . | . . . . . . . . . . . . Garrison . | . . . . . . . . . . . . Intercept . | . . . . . . . . . . . . Searches Triggered . | . . . . . . . . . . . . Construction Impeded . | . . . . . . . . . . . . Haulers Reinforced . | . . . . . . . . . . . . Active Scanning Responses . | . . . . . . . . . . . . Cargo Convoy Interrupts . | . . . . . . . . . . . . Stealth | -11 -10 -10 -10 -9 -8 -8 -7 -7 -6 -5 -5 --------- Run | Yrd Mat Min Exi Min Mat Gar Fac DSF Fac Fac DSF Distress Signals 5 | . 1 . . . . 2 . . 2 . . Communications Jammed . | . . . . . . . . . . . . Distress Signals . | . . . . . . . . . . . . Times Spotted 99 | 5 11 2 . 8 . 25 . 12 14 . 22 Peak Tracking Total 7 | 2 3 2 . 3 . 4 . 5 7 . 5 Tactical Retreats 13 | . . . . 1 . 2 . 3 2 . 5 Traps | -11 -10 -10 -10 -9 -8 -8 -7 -7 -6 -5 -5 ------- Run | Yrd Mat Min Exi Min Mat Gar Fac DSF Fac Fac DSF Traps Triggered 11 | . 2 . . . . 5 . 1 3 . . Indirectly . | . . . . . . . . . . . . Trap Hack Attempts . | . . . . . . . . . . . . Triggered . | . . . . . . . . . . . . Disarmed . | . . . . . . . . . . . . Reprogrammed . | . . . . . . . . . . . . Reused . | . . . . . . . . . . . . Traps Extracted . | . . . . . . . . . . . . Installed . | . . . . . . . . . . . . Triggered . | . . . . . . . . . . . . Machines | -11 -10 -10 -10 -9 -8 -8 -7 -7 -6 -5 -5 ---------- Run | Yrd Mat Min Exi Min Mat Gar Fac DSF Fac Fac DSF Machines Disabled 7 | . . . . . . 3 . 1 3 . . Max in Single Turn 2 | . . . . . . 2 . 1 1 . . Garrison Relay 1 | . . . . . . 1 . . . . . Phase Generator 1 | . . . . . . 1 . . . . . Machines Repaired . | . . . . . . . . . . . . Machines Dismantled . | . . . . . . . . . . . . Machines Sabotaged . | . . . . . . . . . . . . Overloaded Fab Kills . | . . . . . . . . . . . . Hacking | -11 -10 -10 -10 -9 -8 -8 -7 -7 -6 -5 -5 --------- Run | Yrd Mat Min Exi Min Mat Gar Fac DSF Fac Fac DSF Machines Accessed 26 | . 9 . 4 . 3 2 2 . 5 1 . Terminals 17 | . 7 . . . 1 2 2 . 4 1 . Fabricators . | . . . . . . . . . . . . Repair Stations 1 | . 1 . . . . . . . . . . Recycling Units 2 | . 1 . . . . . . . 1 . . Scanalyzers 1 | . . . . . 1 . . . . . . Garrison Access 1 | . . . . . 1 . . . . . . Total Hacks 95 | . 20 . 49 . 8 3 3 . 11 1 . Successful 77 | . 12 . 49 . 8 2 2 . 3 1 . Failed 18 | . 8 . . . . 1 1 . 8 . . Catastrophic . | . . . . . . . . . . . . Database Lockouts . | . . . . . . . . . . . . Manual . | . . . . . . . . . . . . Terminals 30 | . 14 . . . 1 3 3 . 8 1 . Fabricators . | . . . . . . . . . . . . Repair Stations 2 | . 2 . . . . . . . . . . Recycling Units 7 | . 4 . . . . . . . 3 . . Scanalyzers 6 | . . . . . 6 . . . . . . Garrison Access 1 | . . . . . 1 . . . . . . Terminal Hacks 67 | . 9 . 49 . 1 2 2 . 3 1 . Record 49 | . . . 49 . . . . . . . . Open DSF 3 | . . . . . . . 1 . 1 1 . Emergency Access Points 1 | . 1 . . . . . . . . . . Alert Level 1 | . 1 . . . . . . . . . . Recall Investigation 1 | . . . . . . . 1 . . . . Recall Reinforcements 2 | . 2 . . . . . . . . . . Recall Assault 3 | . 1 . . . 1 . . . 1 . . Zone Layout 5 | . 4 . . . . . . . 1 . . Garrison Registry 1 | . . . . . . 1 . . . . . Security Stations 1 | . . . . . . 1 . . . . . Fabricator Hacks . | . . . . . . . . . . . . Repair Station Hacks 2 | . 2 . . . . . . . . . . Scan Component 1 | . 1 . . . . . . . . . . Repair 1 | . 1 . . . . . . . . . . Recycling Unit Hacks 1 | . 1 . . . . . . . . . . Retrieve Components 1 | . 1 . . . . . . . . . . Scanalyzer 6 | . . . . . 6 . . . . . . Insert Component 3 | . . . . . 3 . . . . . . Analyze 3 | . . . . . 3 . . . . . . Garrison Access Hacks 1 | . . . . . 1 . . . . . . Unlock Access 1 | . . . . . 1 . . . . . . Unauthorized Hacks . | . . . . . . . . . . . . Terminals . | . . . . . . . . . . . . Fabricators . | . . . . . . . . . . . . Repair Stations . | . . . . . . . . . . . . Recycling Units . | . . . . . . . . . . . . Scanalyzers . | . . . . . . . . . . . . Garrison Access . | . . . . . . . . . . . . Data Cores Recovered . | . . . . . . . . . . . . Used . | . . . . . . . . . . . . Hacking Detections 13 | . 5 . . . 1 1 1 . 5 . . Full Trace Events 4 | . 1 . . . . . . . 3 . . Feedback Events 1 | . . . . . . . . . 1 . . Corruption 1 | . . . . . . . . . 1 . . Feedback Blocked . | . . . . . . . . . . . . Robot Schematics Acquired . | . . . . . . . . . . . . Robots Built . | . . . . . . . . . . . . Authchips . | . . . . . . . . . . . . Time . | . . . . . . . . . . . . Total Robot Build Rating . | . . . . . . . . . . . . Part Schematics Acquired 3 | . . . . . 3 . . . . . . Parts Built . | . . . . . . . . . . . . Authchips . | . . . . . . . . . . . . Time . | . . . . . . . . . . . . Total Part Build Rating . | . . . . . . . . . . . . Parts Repaired 1 | . 1 . . . . . . . . . . Time 26 | . 26 . . . . . . . . . . Parts Recycled . | . . . . . . . . . . . . Recycled Matter . | . . . . . . . . . . . . Retrieved Matter . | . . . . . . . . . . . . Retrieved Components 8 | . 8 . . . . . . . . . . Parts Scanalyzed 3 | . . . . . 3 . . . . . . Part Schematics Acquired 3 | . . . . . 3 . . . . . . Parts Damaged . | . . . . . . . . . . . . Bothacking | -11 -10 -10 -10 -9 -8 -8 -7 -7 -6 -5 -5 ------------ Run | Yrd Mat Min Exi Min Mat Gar Fac DSF Fac Fac DSF Used RIF Installer 1 | . . . . . . 1 . . . . . Robots Hacked . | . . . . . . . . . . . . Non-combat . | . . . . . . . . . . . . Combat . | . . . . . . . . . . . . Robot Hacks Applied . | . . . . . . . . . . . . Relay Couplers Released 3 | . . . . . . 3 . . . . . Machine Destruction 3 | . . . . . . 3 . . . . . Fabnet Peak Effective % . | . . . . . . . . . . . . Robots Rewired 2 | . . . . . . 2 . . . . . Allies Hacked . | . . . . . . . . . . . . Hacks Repelled . | . . . . . . . . . . . . Allies | -11 -10 -10 -10 -9 -8 -8 -7 -7 -6 -5 -5 -------- Run | Yrd Mat Min Exi Min Mat Gar Fac DSF Fac Fac DSF Total Allies 2 | . . . . . . 2 . . . . . Largest Group 2 | . . . . . . 2 . . . . . Highest-Rated Group 37 | . . . . . . 37 . . . . . Highest-Rated Ally 21 | . . . . . . 21 . . . . . Total Orders . | . . . . . . . . . . . . Ally Attacks . | . . . . . . . . . . . . Total Damage . | . . . . . . . . . . . . Kills . | . . . . . . . . . . . . Allies Corrupted . | . . . . . . . . . . . . Allies Melted . | . . . . . . . . . . . . Intel | -11 -10 -10 -10 -9 -8 -8 -7 -7 -6 -5 -5 ------- Run | Yrd Mat Min Exi Min Mat Gar Fac DSF Fac Fac DSF Active Infowar (turns) 1483 | . . . . . 120 137 125 63 1021 3 14 Sensors 1483 | . . . . . 120 137 125 63 1021 3 14 Triangulation 796 | . . . . . . . . . 796 . . Robot Analysis Total . | . . . . . . . . . . . . Derelict Logs Recovered 1 | . . . . 1 . . . . . . . Drone Launches . | . . . . . . . . . . . . Drone Recoveries . | . . . . . . . . . . . . Exploration | -11 -10 -10 -10 -9 -8 -8 -7 -7 -6 -5 -5 ------------- Run | Yrd Mat Min Exi Min Mat Gar Fac DSF Fac Fac DSF Turns Passed 9041 | 3395 837 128 782 750 167 1135 126 289 1033 3 396 Spaces Moved 4595 | 775 596 93 649 581 83 640 78 253 645 3 199 Core 50 | 45 . . . . . . . . . . 5 Treads . | . . . . . . . . . . . . Legs 3465 | 730 596 93 649 581 83 640 78 15 . . . Wheels 43 | . . . . . . . . 43 . . . Hover 844 | . . . . . . . . 195 625 . 24 Flight 193 | . . . . . . . . . 20 3 170 Fastest Speed 29 | 50 120 120 120 120 120 120 120 52 48 111 29 Average Speed 108 | 127 120 120 120 120 120 120 120 62 62 111 91 Slowest Speed 700 | 300 120 120 120 120 120 190 120 120 200 111 700 Overloaded Moves . | . . . . . . . . . . . . Propulsion Burnouts . | . . . . . . . . . . . . Robots Hopped . | . . . . . . . . . . . . Potential Cave-ins . | . . . . . . . . . . . . Cave-ins Triggered . | . . . . . . . . . . . . Exploration Rate (%) 57 | 75 93 17 90 99 9 53 2 95 20 . 77 Regions Visited 11 Branch Regions 3 Pre-discovered Areas 1 | . . . 1 . . . . . . . . Known Exits Taken 9 | 1 1 1 1 1 1 . 1 . 1 1 . Unknown Exits Taken . | . . . . . . . . . . . . Scrap Searched 1 | . . . . 1 . . . . . . . Spaces Dug . | . . . . . . . . . . . . Terrain Destroyed 79 | . . . . . . 68 . 6 5 . . Melee . | . . . . . . . . . . . . Projectile 5 | . . . . . . . . . 5 . . AOE 74 | . . . . . . 68 . 6 . . . Terrain Rammed . | . . . . . . . . . . . . Walls Destroyed . | . . . . . . . . . . . . Machines Disabled . | . . . . . . . . . . . . Actions | -11 -10 -10 -10 -9 -8 -8 -7 -7 -6 -5 -5 --------- Run | Yrd Mat Min Exi Min Mat Gar Fac DSF Fac Fac DSF Total 8194 | 3162 668 109 650 613 150 836 110 338 1213 2 343 Wait 3124 | 2354 28 17 . 17 54 57 29 9 490 . 69 Move 4583 | 774 595 92 648 580 82 638 77 252 644 2 199 Hop . | . . . . . . . . . . . . Pick Up 74 | 15 8 . . 1 3 11 1 15 11 . 9 Fast Attach 11 | . . . . . 1 2 . . 6 . 2 Attach 41 | 8 2 . . . 5 2 2 9 5 . 8 Detach 8 | . . . . . 2 . . 4 2 . . Swap 38 | . 5 . . 1 2 5 1 11 7 . 6 Drop 55 | . 5 . . 1 1 13 . 11 15 . 9 Fire 235 | 11 25 . 1 10 . 87 . 27 33 . 41 Melee . | . . . . . . . . . . . . Ram . | . . . . . . . . . . . . Kick 3 | . . . . 3 . . . . . . . Crush . | . . . . . . . . . . . . Escape Stasis 7 | . . . . . . 7 . . . . . Rewire 15 | . . . 1 . . 14 . . . . . Trap . | . . . . . . . . . . . . Miscellaneous . | . . . . . . . . . . . . Route ------- -11/Scrapyard -10/Materials (discovered 5 exits: *Mat x3 / *Min x2) -10/Mines (discovered 3 exits: *Mat x2 / *Exi) -10/Exiles (discovered 2 exits: *Min x2) -9/Mines (discovered 2 exits: *Mat x2) -8/Materials -8/Garrison (discovered 3 exits: *Fac x3) -7/Factory -7/DSF -6/Factory -5/Factory -5/DSF (discovered 1 exit: *Fac) History --------- Turn | Location | Event 22 | -11/Scrapyard | Identified exit to Materials 22 | -11/Scrapyard | Discovered exit to Materials (range 16) 2204 | -11/Scrapyard | Assembled infested the area 3396 | -11/Scrapyard | Entered Materials 3396 | -10/Materials | Evolved 1 slot: Utility x1 3397 | -10/Materials | Build established: Hacker-Mutant 3502 | -10/Materials | Identified exit to Mines 3502 | -10/Materials | Discovered exit to Mines (range 10) 3502 | -10/Materials | Discovered exit to Mines (range 18) 3629 | -10/Materials | Identified exit to Materials 3629 | -10/Materials | Discovered exit to Materials (range 12) 3671 | -10/Materials | Discovered exit to Materials (range 17) 3881 | -10/Materials | Discovered exit to Materials (range 8) 3995 | -10/Materials | Repaired Weapon Shielding 4233 | -10/Materials | Entered Mines 4234 | -10/Mines | Assembled infested the area 4238 | -10/Mines | Met a Derelict bent on vengeance 4239 | -10/Mines | Assisted by a Guerilla fighting off Assembled 4239 | -10/Mines | Discovered exit to Materials (range 8) 4270 | -10/Mines | Discovered exit to Materials (range 9) 4355 | -10/Mines | Deemed a non-threat by the Exiles lab entrance 4356 | -10/Mines | Identified exit to Exiles 4356 | -10/Mines | Discovered exit to Exiles (range 5) 4361 | -10/Mines | Entered Exiles 4384 | -10/Exiles | Identified exit to Mines 4384 | -10/Exiles | Discovered exit to Mines (range 15) 4398 | -10/Exiles | Met 8R-AWN 4420 | -10/Exiles | Met EX-HEX 4464 | -10/Exiles | Met EX-DEC 4507 | -10/Exiles | Visited The Gauntlet 4652 | -10/Exiles | Learned location of Zion (-7) 4688 | -10/Exiles | Discovered exit to Mines (range 14) 4786 | -10/Exiles | Met EX-BIN 5143 | -10/Exiles | Entered Mines 5359 | -9/Mines | Received a Rocket Launcher from a helpful Derelict 5401 | -9/Mines | Learned Materials trap positions 5418 | -9/Mines | Identified exit to Materials 5418 | -9/Mines | Discovered exit to Materials (range 14) 5656 | -9/Mines | Discovered exit to Materials (range 10) 5893 | -9/Mines | Entered Materials 5893 | -8/Materials | Evolved 4 slots: Propulsion x1, Utility x3 5894 | -8/Materials | Loaded intel: 13 trap records 6059 | -8/Materials | Identified exit to Garrison 6060 | -8/Materials | Entered Garrison 6212 | -8/Garrison | Triggered checkpoint 6362 | -8/Garrison | Triggered checkpoint 6372 | -8/Garrison | Installed Relay Interface Framework 6436 | -8/Garrison | Triggered checkpoint 6582 | -8/Garrison | Identified exit to Factory 6582 | -8/Garrison | Discovered exit to Factory (range 14) 6660 | -8/Garrison | Triggered checkpoint 6721 | -8/Garrison | Discovered exit to Factory (range 12) 6786 | -8/Garrison | Build established: Scavenger-Mutant 6786 | -8/Garrison | Learned Factory security intel 6846 | -8/Garrison | Triggered checkpoint 6873 | -8/Garrison | Discovered exit to Factory (range 54) 6873 | -8/Garrison | Discovered exit to Factory (range 22) 6873 | -8/Garrison | Discovered exit to Factory (range 32) 6906 | -8/Garrison | Garrison Relay disabled 7167 | -8/Garrison | Phase Generator disabled 7195 | -8/Garrison | Entered Factory 7195 | -7/Factory | Evolved 2 slots: Utility x2 7272 | -7/Factory | Build established: Hacker-Mutant 7319 | -7/Factory | Identified exit to DSF 7321 | -7/Factory | Entered DSF 7356 | -7/DSF | Additional patrols routed to DSF 7399 | -7/DSF | Lost 3 parts (2u1w) 7507 | -7/DSF | Identified exit to Factory 7507 | -7/DSF | Discovered exit to Factory (range 16) 7579 | -7/DSF | Sterilization system engaged 7599 | -7/DSF | Ambient heat levels rising (+10) 7610 | -7/DSF | Entered Factory 7610 | -6/Factory | Evolved 2 slots: Propulsion x1, Utility x1 8585 | -6/Factory | Identified exit to Factory 8585 | -6/Factory | Discovered exit to Factory (range 16) 8643 | -6/Factory | Entered another Factory area 8643 | -5/Factory | Evolved 2 slots: Power x1, Propulsion x1 8646 | -5/Factory | Identified exit to DSF 8646 | -5/Factory | Entered DSF 8684 | -5/DSF | Additional patrols routed to DSF 8832 | -5/DSF | Lost 3 parts (2n1u) 8889 | -5/DSF | Sterilization system engaged 8909 | -5/DSF | Ambient heat levels rising (+10) 8924 | -5/DSF | Ambient heat levels rising (+10) 8939 | -5/DSF | Ambient heat levels rising (+10) 8954 | -5/DSF | Ambient heat levels rising (+10) 8956 | -5/DSF | Destroyed 12 combat bots 8969 | -5/DSF | Ambient heat levels rising (+10) 8984 | -5/DSF | Ambient heat levels rising (+10) 8992 | -5/DSF | Core integrity fell below 50% 8999 | -5/DSF | Ambient heat levels rising (+10) 9014 | -5/DSF | Ambient heat levels rising (+10) 9029 | -5/DSF | Ambient heat levels rising (+10) 9033 | -5/DSF | Core integrity fell below 20% 9033 | -5/DSF | Identified exit to Factory 9033 | -5/DSF | Discovered exit to Factory (range 14) 9043 | -5/DSF | Core destroyed Last Messages --------------- 09015_ Overheating: Broken Rnf. Fission Core damaged (-5). 09015_ Overheating: Hpw. Shotgun damaged (-17). 09016_ Overheating: Broken Field Propulsion Array damaged (-54). 09019_ Overheating: Matter decay (-60). 09025_ Overheating: Targeting Computer damaged (-5). 09026_ Overheating: Broken Rnf. Fission Core damaged (-3). 09026_ Overheating: Broken Field Propulsion Array damaged (-10). 09026_ Acquired 60 matter. 09027_ Overheating: Core damaged (-120). 09029_ ALERT: Ambient heat levels +10. 09031_ Overheating: Matter decay (-42). 09031_ Acquired 40 matter. 09033_ Overheating: Core damaged (-110). 09033_ EXIT=FOUND: FACTORY 09043_ Overheating: Core damaged (-100). Map ----- +----------------------------------------------------+ | ??????????????????????????????????? | | ??????????????????????????????????? | | ?????????""#??????????????????????? | | ?????????#"#??????????????????????? | | ??????####"##???????#########?????? | | ??????#"""""######### ***^!####### | | ??????#"""""##]!#!!!# **!!!# #]] | | ???#"##"" * | | ???#""""" ] | | ????###"" ## !#!!!### ### #]= | | ??????### ###!!#!!!### ### #] | | ???????## ########## ]]#####+# | | ???????# !!#??????# ]]#???# # | | ???????#! !!#??????# ]]#???# # | | ???????## ###??????### ###???[ # | | ???????# #??????#!! !!#???[ # | | ???????# #??????#!! =!!#???# # | | ???????# % #??????#!! !!#???# # | | ??????### ############ ######### | | ????###% ##***"!!!###! ### ]=# | | ????# # ;;***#!!!##!* %##!==#* | | ???## ;! % ] == / === ==== | | ???# ;!! % =% =!!%=[ = | | ???####!! % " ! = [=== | | ??????# ## #!!!##%=!!!!%!=!# | | ??????# @## #!!!### =###!!!# | | ??????### ##########?# #?##"#### | | ???????#!^ !?????????!! //?# #??# | | ???????#! !????????#!!! //## ??? | | ???????#! !!???????#!! //## !!?? | | ???????## ##???????### #### !!#? | | ????????! !??????????! !??# ###? | | ????????! !??????????! !!?# #??? | | ????????# #?????????!! !!?#"#??? | | ????????# #?????????## ###!!???? | | ????????" ??????????# #??!!???? | | ????????" ??????????? ?? ???? | | ????????"< ??????????? ?? ???? | | ????????"""???????????????????????? | | ?????????""???????????????????????? | | ??????????????????????????????????? | | ??????????????????????????????????? | | ??????????????????????????????????? | | ??????????????????????????????????? | | ??????????????????????????????????? | | ??????????????????????????????????? | | ??????????????????????????????????? | | ??????????????????????????????????? | | | | | +----------------------------------------------------+ Best States ------------- Heat Dissipation 71 Energy Generation 19 Energy Capacity 510 Matter Stores 300 Matter Capacity 300 Sight Range 16 Robot Scan Range 15 Terrain Scan Density 10 Additional Mass Support 9 Armor Coverage 225 Resistance: KI 35 Resistance: TH 35 Resistance: EX 35 Resistance: EM 35 Resistance: I 35 Resistance: S 35 Resistance: P 35 Utility Shielding 33 Weapon Shielding 33 Evasion (%) 64 Targeting Accuracy 15 Offensive Hacking 20 Item Schematics ----------------- Wheel | -8/Materials | Scanalyzed Rocket Launcher | -8/Materials | Scanalyzed Shotgun | -8/Materials | Scanalyzed Robot Schematics ------------------ None Fabricated ------------ Nothing Repaired ---------- Weapon Shielding | 32% | -10/Materials Alien Tech Used ----------------- None Achievements -------------- None Challenges ------------ None Game ------ Seed MetafiberPitchforkPod Manual? 0 Play Time 01:13:53 Cumulative 49.5 hours Start 2025.07.18 @ 20:09:32 End 2025.07.18 @ 21:28:42 Sessions 1 Manual Loads 0 Difficulty Explorer Special Mode None Game No. 28 Rogue 0 Adventurer 2 Explorer 26 Win Type - Total 0 Types 0/0/0/0/0/0/0/0/0/0 Lore% 23 Gallery% 31 Achievement% 29 Wizard Run 0 Options --------- Layout 1 ASCII 0 Keyboard 0 Movement Numpad Keybinds 0 Fullscreen 1 Font 24/Smallcaps Map View 50x35 Zoom Use 0% Tactical HUD 1 Map Filters NONE Filters NONE Steam 1 RUN: 4912e852-59e2-4e40-bc2b-fe9ce4add6aa